Cogmind - Beta 12 @@@ ROGUE MODE // 2023.04.01 @ 23:53:38 Player: Cracklepappy Result: Destroyed by G-34 Mercenary with Small Laser Performance ------------- Evolutions (1) 500 Regions Visited (5) 1000 Robots Destroyed (125) 625 Value Destroyed (2802) 2802 Prototype IDs (13) 260 Alien Tech Used (0) 0 Bonus (-1311) -1311 TOTAL SCORE: 3876 Bonus ------- High Alert Combat Kills 11 Friendly Fire -1322 Cogmind --------- Core Integrity 0/400 Matter 291/300 Energy 280/280 System Corruption 5% Temperature Cool (6) Movement Treading (323) Ox2 Location -9/Recycling Parts ------- > --- POWER (1) -------- Heavy Ion Engine > --- PROPULSION (3) --- Light Treads Light Treads Armored Treads > --- UTILITY (3) ------ Cargo Storage Unit Centrium Light Armor Plating > --- WEAPON (2) ------- Improved Assault Rifle Improved Assault Rifle > --- INVENTORY (30) --- Heavy Ion Engine Cold Fusion Reactor Armored Treads Armored Treads Armored Treads Cooled Gravmag System Cooled Gravmag System Improved Flight Unit Improved Flight Unit Improved Flight Unit Improved Flight Unit Improved Flight Unit Improved Flight Unit Improved Flight Unit Experimental Heat Sink Medium Storage Unit Large Storage Unit Advanced Energy Well High-powered Tractor Beam Sensor Drone Bay (20/20) Improved EM Shotgun 01-MTF's Shockpuncher Autogun Improved Assault Rifle Faulty Improved Assault Rifle Improved Assault Rifle Faulty Improved Assault Rifle Slug Cannon Grenade Launcher Flail Peak State ------------ > --- POWER ------------ Heavy Ion Engine > --- PROPULSION ------- Light Treads Light Treads Armored Treads > --- UTILITY ---------- Cargo Storage Unit Centrium Light Armor Plating > --- WEAPON ----------- Improved EM Shotgun Improved Assault Rifle > --- INVENTORY -------- Heavy Ion Engine Cold Fusion Reactor Armored Treads Armored Treads Armored Treads Cooled Gravmag System Cooled Gravmag System Improved Flight Unit Improved Flight Unit Improved Flight Unit Improved Flight Unit Improved Flight Unit Improved Flight Unit Improved Flight Unit Experimental Heat Sink Medium Storage Unit Large Storage Unit Advanced Energy Well High-powered Tractor Beam Sensor Drone Bay 01-MTF's Shockpuncher Autogun Improved Assault Rifle Improved Assault Rifle Improved Assault Rifle Improved Assault Rifle Improved Assault Rifle Slug Cannon Grenade Launcher Flail [Rating: 36] Favorites ----------- Power Ion Engine Engine Ion Engine Power Core Light Nuclear Core Reactor Cold Fusion Reactor Propulsion Light Treads Treads Light Treads Wheel Wheel Utility Hardened Light Armor Plating Device Seismic Detector Storage Huge Storage Unit Protection Hardened Light Armor Plating Weapon Shotgun Energy Gun Improved EM Shotgun Energy Cannon Advanced Beam Cannon Ballistic Gun Shotgun Launcher Grenade Launcher Special Weapon Mining Laser Impact Weapon Flail Build | -11 -10 -10 -9 -9 -9 ------- Run | Jun Mat Min Mat Sto Rec Slots Evolved 2 | . . . 2 . . Power . | . . . . . . Propulsion 1 | . . . 1 . . Utility 1 | . . . 1 . . Weapon . | . . . . . . Parts Attached 90 | 8 15 5 34 27 1 Power 9 | 1 1 . 4 3 . Engine 7 | 1 1 . 3 2 . Core 1 | . . . 1 . . Reactor 1 | . . . . 1 . Propulsion 18 | 2 1 1 10 4 . Treads 16 | 1 . 1 10 4 . Leg . | . . . . . . Wheel 2 | 1 1 . . . . Hover . | . . . . . . Flight . | . . . . . . Utility 21 | 2 4 2 9 4 . Device 3 | 1 . 1 1 . . Storage 5 | 1 3 . . 1 . Processor . | . . . . . . Hackware . | . . . . . . Protection 13 | . 1 1 8 3 . Artifact . | . . . . . . Weapon 42 | 3 9 2 11 16 1 Energy Gun 5 | 2 1 . . 2 . Energy Cannon 2 | . . . . 2 . Ballistic Gun 29 | 1 7 1 10 9 1 Ballistic Cannon . | . . . . . . Launcher 4 | . . 1 1 2 . Special Weapon 1 | . 1 . . . . Impact Weapon 1 | . . . . 1 . Slashing Weapon . | . . . . . . Piercing Weapon . | . . . . . . Special Melee Weapon . | . . . . . . Unidentified Prototypes 5 | . . 1 . 4 . Parts Lost 10 | . . . 7 3 . Power 3 | . . . 3 . . Propulsion 3 | . . . 2 1 . Utility 1 | . . . . 1 . Weapon 3 | . . . 2 1 . Highest Loss Streak 2 | . . . 2 1 . To Critical Strikes . | . . . . . . Average Slot Usage (%) 96 | . 99 100 97 91 88 Engine 11 | . 13 14 8 11 11 Treads 27 | . 14 27 32 32 33 Wheel 3 | . 14 . . . . Storage 12 | . 14 14 11 11 11 Protection 15 | . 12 14 20 14 11 Energy Gun 1 | . 1 . . 2 . Ballistic Gun 22 | . 25 27 21 19 22 Naked Turns . | . . . . . . Heaviest Build 233 | 15 96 96 99 233 157 Greatest Support 60 | 10 10 40 60 60 60 Greatest Overweight (x) 9 | 1 9 9 2 3 2 Average Overweight (x) 3 | . 6 2 1 1 2 Largest Inventory Capacity 30 | 8 25 25 25 30 30 Average Capacity 24 | 7 20 25 25 28 30 Most Carried 30 | 8 25 25 25 30 30 Average Carried 23 | 5 18 24 24 27 30 Final Capacity 30 | 8 25 25 25 30 30 Final Carried 30 | 8 25 25 25 30 30 Class Distribution -------------------- 71% | Mutant 25% | Hauler-Mutant 3% | Scavenger-Mutant Dominant Class ---------------- Mutant | -10/Materials Mutant | -10/Mines Mutant | -9/Materials Hauler-Mutant | -9/Storage Hauler-Mutant | -9/Recycling Resources | -11 -10 -10 -9 -9 -9 ----------- Run | Jun Mat Min Mat Sto Rec Matter Collected 3349 | 322 462 114 1158 996 297 Remotely 113 | . . . 113 . . Salvage Created 5484 | 179 748 127 1588 1408 1434 Parts 283 | 16 43 12 93 73 46 Haulers Intercepted 12 | . 2 . 5 5 . Recyclers Shooed 24 | 1 3 . 2 8 10 Parts Field Recycled . | . . . . . . Retrieved Matter . | . . . . . . Parts Self-Destructed . | . . . . . . Prevented . | . . . . . . Kills | -11 -10 -10 -9 -9 -9 ------- Run | Jun Mat Min Mat Sto Rec Combat Hostiles Destroyed 70 | . 11 8 27 19 5 Guns 63 | . 11 5 25 17 5 AOE 7 | . . 3 2 2 . Classes Destroyed 14 | 2 7 . 2 1 2 Worker 4 | . . . . 4 . Builder 2 | . 1 . . 1 . Tunneler 6 | 5 1 . . . . Hauler 12 | . 2 . 5 5 . Recycler 21 | 1 2 . 2 2 14 Mechanic 2 | . 1 . 1 . . Operator 2 | . 1 . 1 . . Watcher 5 | . 1 . 2 2 . Swarmer 12 | . 3 6 . 3 . Grunt 39 | . 8 2 18 10 1 Duelist 1 | . . . 1 . . Protector 1 | . . . . . 1 Sentry 16 | . . . 8 6 2 Demolisher 1 | . . . . . 1 Best Kill Streak 7 | 6 3 3 7 3 4 Combat Bots Only 5 | . 2 3 5 3 4 Max Kills in Single Turn 3 | 1 1 3 2 3 2 Gunslinging 1 | . . 1 . . . Exploded 3 | . . 3 2 2 . Melee . | . . . . . . Uniques/NPCs Destroyed 1 | . . . . 1 . 01-MTF (-9/Storage) Combat | -11 -10 -10 -9 -9 -9 -------- Run | Jun Mat Min Mat Sto Rec Damage Taken 3329 | . 354 115 1589 1147 124 Core 437 | . 29 . 126 257 25 Absorbed by Shields . | . . . . . . Redirected to Shielding 52 | . . . 26 26 . Regen/Repaired (Parts) 368 | . . . 250 118 . Core Remaining (%) 94 | 100 . 88 . . . Volleys Fired 392 | 14 79 10 124 120 45 Largest 2 | 2 2 2 2 2 2 Hottest 100 | 70 100 46 46 46 46 Shots Fired 735 | 28 157 18 245 200 87 Gun 728 | 28 156 15 243 199 87 Cannon . | . . . . . . Launcher 6 | . . 3 2 1 . Special 1 | . 1 . . . . Kinetic 646 | 14 125 15 243 162 87 Thermal 46 | 14 32 . . . . Explosive 6 | . . 3 2 1 . Electromagnetic 37 | . . . . 37 . Robot Hit Streak 23 | 3 8 10 18 23 15 Robot Miss Streak 11 | 2 6 7 11 3 3 Penetration Max . | . . . . . . Secondary Targets 4 | . 1 2 1 . . Max Gunslinging Chain 1 | . 1 1 1 . . Shots Hit Robots 496 | 16 94 10 172 140 64 Core Hits 232 | 6 39 11 82 61 33 Critical Kills . | . . . . . . Critical Parts Destroyed 2 | . . 1 1 . . Critical Strikes 3 | . 1 1 1 . . Burn 1 | . 1 . . . . Destroy 2 | . . 1 1 . . Melee Attacks 1 | . . . . 1 . Impact 1 | . . . . 1 . Slashing . | . . . . . . Piercing . | . . . . . . Sneak Attacks . | . . . . . . Combat Hostiles . | . . . . . . Follow-up Attacks . | . . . . . . Damage Inflicted 7397 | 205 1148 263 2631 2118 1032 Guns 6895 | 205 1128 180 2498 1852 1032 Cannons . | . . . . . . Explosions 453 | . . 83 118 252 . Melee . | . . . . . . Ramming 49 | . 20 . 15 14 . Kinetic 6406 | 92 904 180 2498 1700 1032 Thermal 474 | 113 224 . . 137 . Explosive 316 | . . 83 118 115 . Electromagnetic 152 | . . . . 152 . Impact . | . . . . . . Slashing . | . . . . . . Piercing . | . . . . . . Highest Corruption 5 | . 1 1 . 4 5 Average Corruption 2 | . 1 1 . 3 4 Corruption Purged . | . . . . . . Corruption Blocked . | . . . . . . Effects 69 | . 10 10 . 32 17 Message Errors 17 | . 4 4 . 6 3 Matter Fused 14 | . 1 2 . 7 4 Heat Flow Errors 8 | . 1 1 . 4 2 Energy Discharges 9 | . 2 1 . 3 3 Data Loss (minor) 11 | . 1 1 . 7 2 Data Loss (major) 1 | . . . . 1 . Misfires 4 | . . 1 . 3 . Alerts 1 | . 1 . . . . Weapon Failures 4 | . . . . 1 3 Overload Shots . | . . . . . . Overflow Damage . | . . . . . . Projectiles . | . . . . . . Explosions . | . . . . . . Melee . | . . . . . . Knockbacks . | . . . . . . Impact . | . . . . . . Kinetic . | . . . . . . Secondary . | . . . . . . Self-Inflicted Damage 96 | . 9 6 . 81 . Shots 3 | . . 1 . 2 . Rammed 7 | . 3 . 2 2 . Targets Rammed 7 | . 3 . 2 2 . Kicked . | . . . . . . Crushed . | . . . . . . Highest Temperature 432 | 45 184 117 50 432 205 Average Temperature 47 | 19 33 35 12 66 97 Received Heat Transfer 1320 | . 156 39 747 357 21 Effects 3 | . . . . 3 . Shutdowns 1 | . . . . 1 . Energy Bleed 1 | . . . . 1 . Interference 1 | . . . . 1 . Siege Activations . | . . . . . . Robots Corrupted 1 | . . . . 1 . Combat Hostiles . | . . . . . . Parts Fried 3 | . . . . 3 . Impact Corruptions . | . . . . . . Robots Melted . | . . . . . . Combat Hostiles . | . . . . . . Parts Melted . | . . . . . . Heat Transferred 1373 | 333 740 . . 300 . Parts Sabotaged . | . . . . . . Parts Stolen . | . . . . . . Parts Stripped . | . . . . . . Power Chain Reactions 2 | . . . . 2 . Missiles Intercepted . | . . . . . . Alert | -11 -10 -10 -9 -9 -9 ------- Run | Jun Mat Min Mat Sto Rec Peak Influence 459 | 30 200 87 459 387 128 Initial 150 | . 19 . . 150 1 Average 101 | 12 63 23 201 98 32 Maximum Alert Level 2 | . 1 . 2 1 . Low Security (%) 77 | 100 95 100 47 73 100 Level 1 21 | . 4 . 49 26 . Level 2 . | . . . 3 . . Level 3 . | . . . . . . Level 4 . | . . . . . . Level 5 . | . . . . . . High Security . | . . . . . . Max Security . | . . . . . . Squads Dispatched 10 | . 3 . 5 2 . Investigation 3 | . 2 . 1 . . Extermination . | . . . . . . Reinforcement 7 | . 1 . 4 2 . Assault . | . . . . . . Garrison . | . . . . . . Intercept . | . . . . . . Searches Triggered . | . . . . . . Construction Impeded 1 | . . . . 1 . Haulers Reinforced . | . . . . . . Active Scanning Responses . | . . . . . . Cargo Convoy Interrupts . | . . . . . . Stealth | -11 -10 -10 -9 -9 -9 --------- Run | Jun Mat Min Mat Sto Rec Distress Signals 12 | . 2 . 7 2 1 Communications Jammed . | . . . . . . Distress Signals . | . . . . . . Times Spotted 138 | . 36 8 61 27 6 Peak Tracking Total 7 | . 5 3 7 5 3 Tactical Retreats 3 | . 1 . 1 1 . Traps | -11 -10 -10 -9 -9 -9 ------- Run | Jun Mat Min Mat Sto Rec Traps Triggered 8 | . 3 . 2 3 . Indirectly . | . . . . . . Trap Hack Attempts . | . . . . . . Triggered . | . . . . . . Disarmed . | . . . . . . Reprogrammed . | . . . . . . Reused . | . . . . . . Traps Extracted . | . . . . . . Installed . | . . . . . . Triggered . | . . . . . . Machines | -11 -10 -10 -9 -9 -9 ---------- Run | Jun Mat Min Mat Sto Rec Machines Disabled 5 | . . . 2 3 . Max in Single Turn 2 | . . . 1 2 . Garrison Access 1 | . . . . 1 . Machines Repaired . | . . . . . . Machines Sabotaged . | . . . . . . Overloaded Fab Kills . | . . . . . . Hacking | -11 -10 -10 -9 -9 -9 --------- Run | Jun Mat Min Mat Sto Rec Machines Accessed 28 | . 7 1 10 9 1 Terminals 19 | . 5 . 7 7 . Fabricators . | . . . . . . Repair Stations 3 | . . . 2 1 . Recycling Units 4 | . 2 . 1 . 1 Scanalyzers . | . . . . . . Garrison Access 1 | . . . . 1 . Total Hacks 74 | . 21 1 25 26 1 Successful 32 | . 9 1 9 13 . Failed 41 | . 11 . 16 13 1 Catastrophic 13 | . 3 . 8 1 1 Database Lockouts 1 | . 1 . . . . Manual 25 | . 9 . 12 3 1 Terminals 51 | . 14 . 17 20 . Fabricators . | . . . . . . Repair Stations 12 | . . . 7 5 . Recycling Units 9 | . 7 . 1 . 1 Scanalyzers . | . . . . . . Garrison Access 1 | . . . . 1 . Terminal Hacks 19 | . 6 1 3 9 . Part Schematic 3 | . 3 . . . . Prototype ID Bank 4 | . 2 . 1 1 . Open Door 4 | . . 1 . 3 . Branch Access Points 1 | . . . 1 . . Terminal Index 1 | . 1 . . . . Alert Level 1 | . . . . 1 . Unreport Threat 4 | . . . 1 3 . Hauler Manifests 1 | . . . . 1 . Fabricator Hacks . | . . . . . . Repair Station Hacks 7 | . . . 5 2 . Scan Component 4 | . . . 3 1 . Repair 3 | . . . 2 1 . Recycling Unit Hacks 2 | . 1 . 1 . . Retrieve Components 2 | . 1 . 1 . . Scanalyzer . | . . . . . . Garrison Access Hacks 1 | . . . . 1 . Seal Access 1 | . . . . 1 . Unauthorized Hacks 3 | . 2 . . 1 . Terminals 1 | . . . . 1 . Botnet 1 | . . . . 1 . Fabricators . | . . . . . . Repair Stations . | . . . . . . Recycling Units 2 | . 2 . . . . Tunnel 2 | . 2 . . . . Scanalyzers . | . . . . . . Garrison Access . | . . . . . . Data Cores Recovered . | . . . . . . Used . | . . . . . . Hacking Detections 21 | . 6 . 10 4 1 Full Trace Events 2 | . . . 2 . . Feedback Events . | . . . . . . Feedback Blocked . | . . . . . . Robot Schematics Acquired . | . . . . . . Robots Built . | . . . . . . Authchips . | . . . . . . Time . | . . . . . . Total Robot Build Rating . | . . . . . . Part Schematics Acquired 3 | . 3 . . . . Parts Built . | . . . . . . Authchips . | . . . . . . Time . | . . . . . . Total Part Build Rating . | . . . . . . Parts Repaired 3 | . . . 2 1 . Time 84 | . . . 58 26 . Parts Recycled . | . . . . . . Recycled Matter . | . . . . . . Retrieved Matter . | . . . . . . Retrieved Components 12 | . 10 . 2 . . Parts Scanalyzed . | . . . . . . Part Schematics Acquired . | . . . . . . Parts Damaged . | . . . . . . Bothacking | -11 -10 -10 -9 -9 -9 ------------ Run | Jun Mat Min Mat Sto Rec Used RIF Installer . | . . . . . . Robots Hacked . | . . . . . . Non-combat . | . . . . . . Combat . | . . . . . . Robot Hacks Applied . | . . . . . . Relay Couplers Released . | . . . . . . Fabnet Peak Effective % . | . . . . . . Robots Rewired . | . . . . . . Allies Hacked . | . . . . . . Hacks Repelled . | . . . . . . Allies | -11 -10 -10 -9 -9 -9 -------- Run | Jun Mat Min Mat Sto Rec Total Allies 1 | . . . . 1 . Largest Group 1 | . . . . 1 . Highest-Rated Group 100 | . . . . 100 . Highest-Rated Ally 100 | . . . . 100 . Total Orders . | . . . . . . Ally Attacks . | . . . . . . Total Damage . | . . . . . . Kills . | . . . . . . Allies Corrupted 1 | . . . . 1 . Allies Melted . | . . . . . . Intel | -11 -10 -10 -9 -9 -9 ------- Run | Jun Mat Min Mat Sto Rec Robot Analysis Total . | . . . . . . Derelict Logs Recovered 3 | . . 3 . . . Drone Launches . | . . . . . . Drone Recoveries . | . . . . . . Exploration | -11 -10 -10 -9 -9 -9 ------------- Run | Jun Mat Min Mat Sto Rec Turns Passed 11378 | 136 2801 1614 3061 3037 729 Spaces Moved 3779 | 81 1310 498 871 837 182 Core 1 | 1 . . . . . Treads 2368 | . . 478 871 837 182 Legs . | . . . . . . Wheels 1410 | 80 1310 20 . . . Hover . | . . . . . . Flight . | . . . . . . Fastest Speed 50 | 50 95 215 240 240 323 Average Speed 241 | 91 175 315 242 296 323 Slowest Speed 400 | 95 215 320 320 400 323 Overloaded Moves . | . . . . . . Propulsion Burnouts . | . . . . . . Robots Hopped . | . . . . . . Cave-ins Triggered . | . . . . . . Exploration Rate (%) 67 | 5 99 98 75 94 34 Regions Visited 5 Branch Regions 3 Pre-discovered Areas 2 | . 2 . . . . Known Exits Taken 2 | . . . 1 1 . Unknown Exits Taken 3 | 1 1 1 . . . Scrap Searched 3 | . . 3 . . . Spaces Dug 12 | . 1 7 . 4 . Terrain Destroyed 38 | . 1 18 12 7 . Melee . | . . . . . . Projectile 1 | . 1 . . . . AOE 37 | . . 18 12 7 . Terrain Rammed . | . . . . . . Walls Destroyed . | . . . . . . Machines Disabled . | . . . . . . Actions | -11 -10 -10 -9 -9 -9 --------- Run | Jun Mat Min Mat Sto Rec Total 5330 | 110 1658 525 1573 1230 234 Wait 890 | . 204 3 502 175 6 Move 3774 | 80 1309 497 870 836 182 Hop . | . . . . . . Pick Up 90 | 8 30 4 18 30 . Fast Attach 33 | 7 6 2 6 12 . Attach 11 | . . . 6 5 . Detach 2 | . . . . 2 . Swap 46 | 1 9 3 22 10 1 Drop 84 | . 18 6 23 37 . Fire 392 | 14 79 10 124 120 45 Melee 1 | . . . . 1 . Ram 3 | . 3 . . . . Kick . | . . . . . . Crush 4 | . . . 2 2 . Escape Stasis . | . . . . . . Rewire . | . . . . . . Trap . | . . . . . . Miscellaneous . | . . . . . . Route ------- -11/Junkyard -10/Materials (discovered 5 exits: *Mat x3 / *Min x2) -10/Mines (discovered 3 exits: *Mat x2 / [*Exi]) -9/Materials (discovered 3 exits: [*Mat] / *Min / *Sto) -9/Storage (discovered 2 exits: [*Mat] / *Rec) -9/Recycling History --------- Turn | Location | Event 15 | -11/Junkyard | Discovered new exit (range 15) 137 | -11/Junkyard | Entered Materials 157 | -10/Materials | Discovered new exit (range 16) 240 | -10/Materials | Discovered new exit (range 10) 247 | -10/Materials | Discovered new exit (range 15) 305 | -10/Materials | Build established: Mutant 411 | -10/Materials | Discovered new exit (range 11) 566 | -10/Materials | Discovered new exit (range 10) 1149 | -10/Materials | Central database locked down 2938 | -10/Materials | Entered Mines 2944 | -10/Mines | Found the Drone Emporium 2954 | -10/Mines | Found Prototype Device 2954 | -10/Mines | Identified Sensor Drone Bay 3139 | -10/Mines | Found a hidden stash of uninstalled traps 3322 | -10/Mines | Learned Materials terminal intel 3623 | -10/Mines | Deemed a non-threat by the Exiles lab entrance 3623 | -10/Mines | Discovered new exit (range 5) 3693 | -10/Mines | Discovered new exit (range 11) 4428 | -10/Mines | A weapon hastily lodged in a ceiling crevice suddenly fell to the ground 4508 | -10/Mines | Discovered new exit (range 5) 4552 | -10/Mines | Entered Materials 4552 | -9/Materials | Evolved 2 slots: Propulsion x1, Utility x1 4553 | -9/Materials | Identified exit to Mines 4554 | -9/Materials | Loaded intel: 12 terminal locations 5578 | -9/Materials | Discovered new exit (range 8) 5836 | -9/Materials | Repaired Hrd. Light Armor Plating 5863 | -9/Materials | Repaired Lgt. Treads 6447 | -9/Materials | Identified exit to Storage 7149 | -9/Materials | Discovered new exit (range 14) 7613 | -9/Materials | Entered Storage 7614 | -9/Storage | Identified exit to Recycling 7874 | -9/Storage | Core integrity fell below 50% 8067 | -9/Storage | Discovered new exit (range 5) 8417 | -9/Storage | Repaired Lgt. Treads 8685 | -9/Storage | Core integrity fell below 20% 8795 | -9/Storage | Build established: Hauler-Mutant 9366 | -9/Storage | Used back door to open Recycling access 9921 | -9/Storage | Met 01-MTF 10524 | -9/Storage | Destroyed 01-MTF 10555 | -9/Storage | Found Corrupted 01-MTF's Shockpuncher 10650 | -9/Storage | Entered Recycling 11379 | -9/Recycling | Destroyed by G-34 Mercenary with Small Laser Last Messages --------------- 11252_ R-06 Scavenger collects Sml. Storage Unit. 11255_ R-06 Scavenger collects Aluminum Leg. 11257_ R-06 Scavenger destroyed. 11279_ R-06 Scavenger collects Lgt. Ion Engine. 11283_ R-06 Scavenger collects Sml. Storage Unit. 11288_ R-06 Scavenger destroyed. 11291_ Acquired 40 matter. 11301_ System corrupted: Heat flow error (+222). 11314_ R-06 Scavenger inserts Com. Wheel into recycling unit. 11317_ R-06 Scavenger inserts Sml. Storage Unit into recycling unit. 11328_ Acquired 6 matter. 11330_ Destroyed Tractor Beam. 11331_ Acquired 6 matter. 11333_ Destroyed Lgt. Ion Engine. 11334_ Acquired 3 matter. 11357_ XRGF%6E3LJZ5ZVGIEITP|>%S96YEDOS0U 11376_ Y-45 Defender springs to life. 11377_ G-34 Mercenary springs to life. 11377_ P-60 Hacker springs to life. 11378_ A-02 Transporter destroyed. Map ----- +----------------------------------------------------+ | | | | | | | | | | | | | | | | | | | | | | | | | | | ?????????????????????????????? | | ?????????????????????????????? | | ?????????????????????????????? | | ?????????????????????????????? | | ?????????????????????????????? | | ?????????????????????????????? | | ?????????????????????????????? | | ??######?????????????????????? | | ??#gY! #####?????????????????? | | ??# i!!# #?????????????????? | | ??#d !!# ! ###???????????????? | | ??#bp! # ""#???????????????? | | ??# b@ # Y"#???????????????? | | ??# a # ""#???????????????? | | ??# g[ + ###???????????????? | | ??#hgY # #?????????????????? | | ??#Yp| # #???######????????? | | ??#!hi # #??? #????????# | | ??# t # #?? #??????? # | | ??# aak# #?? #??????? # | | ??# uap# #? ##?#???? # | | ??###### #? #?# """ # | | ??????#% # #??# # | | ??????## # #??# """ # | | ???????# +* #??# """ # | | ???????# % # #??# """ # | | ???????# %%##########??# # | | ???????#=% #???????????# # | | ??????## ##??????????# # | | ??????# ###############+## | | ??????# !% | | ??????# %=%* % | | ??????# % | | ??????# #### =!! "" | | ??????#######??# """%! """ | | ???????????????# "T!=* """ | | ???????????????# """ | +----------------------------------------------------+ Best States ------------- Heat Dissipation 28 Energy Generation 14 Energy Capacity 280 Matter Stores 300 Matter Capacity 300 Sight Range 16 Terrain Scan Density 10 Armor Coverage 300 Core Shielding 20 Evasion (%) 44 Recoil Reduction 3 Item Schematics ----------------- Huge Storage Unit | -10/Materials | Hacked Med. Storage Unit | -10/Materials | Hacked Cargo Storage Unit | -10/Materials | Hacked Robot Schematics ------------------ None Fabricated ------------ Nothing Alien Tech Used ----------------- None Achievements -------------- None Challenges ------------ None Game ------ Seed ArmageddonResetFacilitator Manual? 0 Play Time 00:55:43 Cumulative 504.6 hours Start 2023.04.01 @ 22:34:43 End 2023.04.01 @ 23:53:38 Sessions 3 Manual Loads 0 Difficulty Rogue Special Mode None Game No. 365 Rogue 365 Adventurer 0 Explorer 0 Win Type - Total 15 Types 8/3/1/0/0/1/2/0/0 Lore% 80 Gallery% 91 Achievement% 78 Wizard Run 0 Options --------- ASCII 0 Keyboard 0 Movement Numpad Keybinds 0 Fullscreen 2 Font 24/Terminus Map View 76x50 Tactical HUD 1 Map Filters NONE Filters NONE Steam 1 RUN: 63e3f2e3-e257-4993-b6f0-2be22445164c